[Event "Titled Tuesday Blitz June 21 Early 2022"]
[White "Volkov, Maksim"]
[Black "Costachi, Mihnea"]
[WhiteFideId "54123070"]
[BlackFideId "1217518"]
[WhiteElo "2155"]
[BlackElo "2476"]
[Result "1-0"]
[Round "09"]
[TimeControl "180+1"]
[Date "2022.06.21"]
[WhiteClock "0:00:04"]
[BlackClock "0:00:27"]

1. d4 {[%clk 0:03:00]}  Nf6 {[%clk 0:02:59]} 2. c4 {[%clk 0:03:00]}  g6 {[%clk 0:03:00]} 3. g3 {[%clk 0:03:00]}  Bg7 {[%clk 0:03:00]} 4. Bg2 {[%clk 0:03:01]}  O-O {[%clk 0:03:01]} 5. Nc3 {[%clk 0:03:01]}  d6 {[%clk 0:03:02]} 6. Nf3 {[%clk 0:03:01]}  Nc6 {[%clk 0:03:02]} 7. O-O {[%clk 0:03:02]}  Bf5 {[%clk 0:03:02]} 8. d5 {[%clk 0:03:01]}  Na5 {[%clk 0:03:02]} 9. b3 {[%clk 0:03:02]}  c5 {[%clk 0:03:00]} 10. dxc6 {[%clk 0:02:57]}  Nxc6 {[%clk 0:02:57]} 11. Bb2 {[%clk 0:02:32]}  Ne4 {[%clk 0:02:56]} 12. Rc1 {[%clk 0:02:31]}  Nxc3 {[%clk 0:02:53]} 13. Bxc3 {[%clk 0:02:31]}  Bxc3 {[%clk 0:02:54]} 14. Rxc3 {[%clk 0:02:32]}  Qa5 {[%clk 0:02:55]} 15. Qd2 {[%clk 0:02:31]}  Rfd8 {[%clk 0:02:52]} 16. Rd1 {[%clk 0:02:30]}  Rac8 {[%clk 0:02:48]} 17. Re3 {[%clk 0:02:28]}  Qxd2 {[%clk 0:02:43]} 18. Rxd2 {[%clk 0:02:29]}  Kf8 {[%clk 0:02:43]} 19. Ng5 {[%clk 0:02:26]}  h6 {[%clk 0:02:42]} 20. Ne4 {[%clk 0:02:25]}  Ne5 {[%clk 0:02:38]} 21. h3 {[%clk 0:02:12]}  b6 {[%clk 0:02:38]} 22. Nc3 {[%clk 0:02:11]}  Bd7 {[%clk 0:02:34]} 23. Nd5 {[%clk 0:02:07]}  Bc6 {[%clk 0:02:31]} 24. f4 {[%clk 0:01:55]}  Bxd5 {[%clk 0:02:29]} 25. Bxd5 {[%clk 0:01:56]}  Nc6 {[%clk 0:02:25]} 26. g4 {[%clk 0:01:53]}  Nb4 {[%clk 0:02:21]} 27. Be4 {[%clk 0:01:50]}  Na6 {[%clk 0:02:07]} 28. Bb7 {[%clk 0:01:47]}  Nc5 {[%clk 0:02:02]} 29. Bxc8 {[%clk 0:01:47]}  Rxc8 {[%clk 0:02:03]} 30. Kf2 {[%clk 0:01:46]}  f5 {[%clk 0:01:53]} 31. Kf3 {[%clk 0:01:35]}  Ne4 {[%clk 0:01:51]} 32. Rd4 {[%clk 0:01:30]}  Kf7 {[%clk 0:01:49]} 33. h4 {[%clk 0:01:20]}  h5 {[%clk 0:01:47]} 34. g5 {[%clk 0:01:19]}  Ke8 {[%clk 0:01:37]} 35. Red3 {[%clk 0:01:03]}  Kd7 {[%clk 0:01:33]} 36. a3 {[%clk 0:01:01]}  Nc5 {[%clk 0:01:29]} 37. Re3 {[%clk 0:01:00]}  Ne4 {[%clk 0:01:29]} 38. Rexe4 {[%clk 0:00:50]}  fxe4+ {[%clk 0:01:29]} 39. Kxe4 {[%clk 0:00:51]}  Ke6 {[%clk 0:01:28]} 40. Rd5 {[%clk 0:00:50]}  Rf8 {[%clk 0:01:26]} 41. e3 {[%clk 0:00:49]}  Rf7 {[%clk 0:01:25]} 42. Kf3 {[%clk 0:00:49]}  Kd7 {[%clk 0:01:23]} 43. e4 {[%clk 0:00:48]}  e6 {[%clk 0:01:24]} 44. Rd2 {[%clk 0:00:48]}  e5 {[%clk 0:01:24]} 45. f5 {[%clk 0:00:35]}  gxf5 {[%clk 0:01:25]} 46. g6 {[%clk 0:00:32]}  fxe4+ {[%clk 0:01:25]} 47. Ke3 {[%clk 0:00:27]}  Rf3+ {[%clk 0:01:21]} 48. Kxe4 {[%clk 0:00:26]}  Rf4+ {[%clk 0:01:22]} 49. Kd5 {[%clk 0:00:26]}  Rg4 {[%clk 0:01:21]} 50. g7 {[%clk 0:00:21]}  Rxg7 {[%clk 0:01:20]} 51. Rf2 {[%clk 0:00:21]}  Ke7 {[%clk 0:01:17]} 52. Rf5 {[%clk 0:00:19]}  Rg3 {[%clk 0:01:17]} 53. Rxh5 {[%clk 0:00:19]}  Rxb3 {[%clk 0:01:15]} 54. Rh7+ {[%clk 0:00:19]}  Kf6 {[%clk 0:01:15]} 55. Rxa7 {[%clk 0:00:18]}  Rd3+ {[%clk 0:01:13]} 56. Kc6 {[%clk 0:00:18]}  e4 {[%clk 0:01:13]} 57. Ra8 {[%clk 0:00:09]}  Ke7 {[%clk 0:00:57]} 58. Rg8 {[%clk 0:00:07]}  Rxa3 {[%clk 0:00:56]} 59. Kxb6 {[%clk 0:00:05]}  Rc3 {[%clk 0:00:53]} 60. Kb5 {[%clk 0:00:04]}  Ke6 {[%clk 0:00:50]} 61. h5 {[%clk 0:00:03]}  Rh3 {[%clk 0:00:50]} 62. Re8+ {[%clk 0:00:01]}  Kf5 {[%clk 0:00:50]} 63. Kc6 {[%clk 0:00:01]}  Rxh5 {[%clk 0:00:36]} 64. Kxd6 {[%clk 0:00:01]}  Rh6+ {[%clk 0:00:37]} 65. Kd5 {[%clk 0:00:02]}  Rh4 {[%clk 0:00:28]} 66. c5 {[%clk 0:00:02]}  Kf6 {[%clk 0:00:22]} 67. Rxe4 {[%clk 0:00:01]}  Rh5+ {[%clk 0:00:23]} 68. Kd4 {[%clk 0:00:01]}  Rh1 {[%clk 0:00:21]} 69. Re3 {[%clk 0:00:02]}  Rd1+ {[%clk 0:00:21]} 70. Kc4 {[%clk 0:00:02]}  Rc1+ {[%clk 0:00:22]} 71. Kb5 {[%clk 0:00:03]}  Kf5 {[%clk 0:00:21]} 72. Kc6 {[%clk 0:00:03]}  Kf4 {[%clk 0:00:22]} 73. Re8 {[%clk 0:00:03]}  Re1 {[%clk 0:00:22]} 74. Rxe1 {[%clk 0:00:01]}  Kf5 {[%clk 0:00:22]} 75. Re8 {[%clk 0:00:02]}  Kf6 {[%clk 0:00:23]} 76. Kd7 {[%clk 0:00:03]}  Kf7 {[%clk 0:00:24]} 77. c6 {[%clk 0:00:04]}  Kf6 {[%clk 0:00:25]} 78. c7 {[%clk 0:00:05]}  Kg7 {[%clk 0:00:26]} 79. c8=Q {[%clk 0:00:05]}  Kh7 {[%clk 0:00:26]} 80. Rh8+ {[%clk 0:00:05]}  Kg7 {[%clk 0:00:26]} 81. Qf8+ {[%clk 0:00:05]}  Kg6 {[%clk 0:00:27]} 82. Rg8+ {[%clk 0:00:05]}  Kh5 {[%clk 0:00:27]} 83. Qf7+ {[%clk 0:00:04]}  Kh6 {[%clk 0:00:27]} 84. Qg6# {[%clk 0:00:04]} 1-0


[Site "https://www.chess.com"]

[Event "Titled Tuesday Blitz June 21 Early 2022"]
[White "Xu, Yi"]
[Black "Tisaj, Domen"]
[WhiteFideId "8605564"]
[BlackFideId "14628708"]
[WhiteElo "2471"]
[BlackElo "2326"]
[Result "1-0"]
[Round "09"]
[TimeControl "180+1"]
[Date "2022.06.21"]
[WhiteClock "0:00:50"]
[BlackClock "0:01:04"]

1. e4 {[%clk 0:02:57]}  c5 {[%clk 0:03:00]} 2. Nf3 {[%clk 0:02:57]}  Nc6 {[%clk 0:03:00]} 3. Bb5 {[%clk 0:02:56]}  Nf6 {[%clk 0:03:00]} 4. Nc3 {[%clk 0:02:56]}  g6 {[%clk 0:03:00]} 5. e5 {[%clk 0:02:53]}  Ng4 {[%clk 0:03:00]} 6. Bxc6 {[%clk 0:02:54]}  dxc6 {[%clk 0:03:01]} 7. h3 {[%clk 0:02:54]}  Nh6 {[%clk 0:03:01]} 8. g4 {[%clk 0:02:53]}  Bg7 {[%clk 0:03:01]} 9. Qe2 {[%clk 0:02:53]}  O-O {[%clk 0:03:00]} 10. d3 {[%clk 0:02:54]}  f5 {[%clk 0:02:59]} 11. g5 {[%clk 0:02:53]}  Nf7 {[%clk 0:02:59]} 12. Bf4 {[%clk 0:02:53]}  Qa5 {[%clk 0:02:57]} 13. h4 {[%clk 0:02:52]}  b5 {[%clk 0:02:48]} 14. h5 {[%clk 0:02:47]}  b4 {[%clk 0:02:44]} 15. Nd1 {[%clk 0:02:46]}  b3+ {[%clk 0:02:42]} 16. c3 {[%clk 0:02:25]}  Qxa2 {[%clk 0:02:36]} 17. Rc1 {[%clk 0:02:25]}  c4 {[%clk 0:02:20]} 18. d4 {[%clk 0:02:21]}  Be6 {[%clk 0:02:16]} 19. hxg6 {[%clk 0:02:00]}  hxg6 {[%clk 0:02:16]} 20. Ne3 {[%clk 0:01:47]}  Qa6 {[%clk 0:02:02]} 21. Nh4 {[%clk 0:01:46]}  Nh8 {[%clk 0:02:01]} 22. Nhg2 {[%clk 0:01:30]}  Qb5 {[%clk 0:01:40]} 23. Bg3 {[%clk 0:01:27]}  Bd5 {[%clk 0:01:32]} 24. f3 {[%clk 0:01:22]}  Kf7 {[%clk 0:01:20]} 25. Nf4 {[%clk 0:01:21]}  e6 {[%clk 0:01:20]} 26. Rh7 {[%clk 0:01:18]}  a5 {[%clk 0:01:17]} 27. Nexd5 {[%clk 0:01:08]}  cxd5 {[%clk 0:01:14]} 28. Rxg7+ {[%clk 0:01:08]}  Kxg7 {[%clk 0:01:15]} 29. Nxe6+ {[%clk 0:01:09]}  Kg8 {[%clk 0:01:14]} 30. Nxf8 {[%clk 0:01:05]}  Rxf8 {[%clk 0:01:14]} 31. e6 {[%clk 0:01:06]}  f4 {[%clk 0:01:06]} 32. e7 {[%clk 0:01:00]}  Re8 {[%clk 0:01:07]} 33. Qe6+ {[%clk 0:00:57]}  Kg7 {[%clk 0:01:07]} 34. Bxf4 {[%clk 0:00:53]}  Qb7 {[%clk 0:01:04]} 35. Be5+ {[%clk 0:00:52]}  Kh7 {[%clk 0:01:04]} 36. Qh3+ {[%clk 0:00:50]} 1-0


[Site "https://www.chess.com"]

[Event "Titled Tuesday Blitz June 21 Early 2022"]
[White "Zierk, Steven"]
[Black "Lashkin, Jegor"]
[WhiteFideId "2034255"]
[BlackFideId "13907808"]
[WhiteElo "2494"]
[BlackElo "2368"]
[Result "1-0"]
[Round "09"]
[TimeControl "180+1"]
[Date "2022.06.21"]
[WhiteClock "0:01:15"]
[BlackClock "0:00:26"]

1. e4 {[%clk 0:03:00]}  c5 {[%clk 0:03:00]} 2. Nf3 {[%clk 0:02:59]}  d6 {[%clk 0:03:00]} 3. d4 {[%clk 0:02:59]}  cxd4 {[%clk 0:03:01]} 4. Nxd4 {[%clk 0:03:00]}  Nf6 {[%clk 0:03:01]} 5. f3 {[%clk 0:03:00]}  e5 {[%clk 0:03:01]} 6. Nb3 {[%clk 0:03:00]}  d5 {[%clk 0:03:01]} 7. Bg5 {[%clk 0:02:59]}  Be6 {[%clk 0:03:01]} 8. Bxf6 {[%clk 0:02:59]}  gxf6 {[%clk 0:03:02]} 9. exd5 {[%clk 0:03:00]}  Qxd5 {[%clk 0:03:03]} 10. Nc3 {[%clk 0:02:58]}  Bb4 {[%clk 0:02:57]} 11. Qxd5 {[%clk 0:02:54]}  Bxd5 {[%clk 0:02:57]} 12. O-O-O {[%clk 0:02:53]}  Be6 {[%clk 0:02:49]} 13. Ne4 {[%clk 0:02:45]}  f5 {[%clk 0:02:26]} 14. Nec5 {[%clk 0:02:41]}  Bxc5 {[%clk 0:02:17]} 15. Nxc5 {[%clk 0:02:41]}  Ke7 {[%clk 0:02:00]} 16. Nxb7 {[%clk 0:02:39]}  Nc6 {[%clk 0:01:59]} 17. Nc5 {[%clk 0:02:36]}  Nb4 {[%clk 0:01:41]} 18. a3 {[%clk 0:02:28]}  Nd5 {[%clk 0:01:41]} 19. Ba6 {[%clk 0:02:12]}  Rab8 {[%clk 0:01:37]} 20. Rhe1 {[%clk 0:02:09]}  Rb6 {[%clk 0:00:53]} 21. Bc4 {[%clk 0:01:41]}  Rc8 {[%clk 0:00:45]} 22. Nxe6 {[%clk 0:01:38]}  Rxc4 {[%clk 0:00:41]} 23. Ng7 {[%clk 0:01:18]}  Nf4 {[%clk 0:00:28]} 24. Nxf5+ {[%clk 0:01:17]}  Ke6 {[%clk 0:00:26]} 25. Ne3 {[%clk 0:01:15]}  Rc7 {[%clk 0:00:26]} 26. g3 {[%clk 0:01:15]} 1-0


[Site "https://www.chess.com"]

[Event "Titled Tuesday Blitz June 21 Early 2022"]
[White "Al-Tarboush, Ward"]
[Black "Mickiewicz, Piotr"]
[WhiteFideId "7601450"]
[BlackFideId "1114891"]
[WhiteElo "2249"]
[BlackElo "2209"]
[Result "0-1"]
[Round "10"]
[TimeControl "180+1"]
[Date "2022.06.22"]
[WhiteClock "0:01:34"]
[BlackClock "0:00:36"]

1. e4 {[%clk 0:03:00]}  c5 {[%clk 0:02:57]} 2. Nf3 {[%clk 0:03:01]}  d6 {[%clk 0:02:56]} 3. d4 {[%clk 0:03:01]}  cxd4 {[%clk 0:02:57]} 4. Nxd4 {[%clk 0:03:02]}  Nf6 {[%clk 0:02:57]} 5. Nc3 {[%clk 0:03:03]}  e6 {[%clk 0:02:57]} 6. g4 {[%clk 0:03:02]}  e5 {[%clk 0:02:56]} 7. Nf5 {[%clk 0:03:02]}  h5 {[%clk 0:02:55]} 8. g5 {[%clk 0:03:02]}  Nxe4 {[%clk 0:02:53]} 9. Nxg7+ {[%clk 0:02:57]}  Bxg7 {[%clk 0:02:54]} 10. Nxe4 {[%clk 0:02:58]}  d5 {[%clk 0:02:54]} 11. Nf6+ {[%clk 0:02:31]}  Bxf6 {[%clk 0:02:52]} 12. gxf6 {[%clk 0:02:32]}  Nc6 {[%clk 0:02:46]} 13. Bg5 {[%clk 0:02:29]}  Bf5 {[%clk 0:02:37]} 14. Qd2 {[%clk 0:02:25]}  Nd4 {[%clk 0:02:30]} 15. O-O-O {[%clk 0:02:26]}  Rc8 {[%clk 0:02:23]} 16. c3 {[%clk 0:02:25]}  Qa5 {[%clk 0:02:22]} 17. Bd3 {[%clk 0:02:16]}  Qxa2 {[%clk 0:02:15]} 18. Bxf5 {[%clk 0:02:15]}  Qa1+ {[%clk 0:01:55]} 19. Bb1 {[%clk 0:02:14]}  Nb3+ {[%clk 0:01:48]} 20. Kc2 {[%clk 0:02:14]}  Nxd2 {[%clk 0:01:43]} 21. Rxd2 {[%clk 0:02:15]}  d4 {[%clk 0:01:40]} 22. Re1 {[%clk 0:02:13]}  dxc3 {[%clk 0:01:28]} 23. Rxe5+ {[%clk 0:02:13]}  Kf8 {[%clk 0:01:28]} 24. Rd7 {[%clk 0:01:45]}  Qxb2+ {[%clk 0:01:09]} 25. Kd3 {[%clk 0:01:45]}  Qxb1+ {[%clk 0:01:06]} 26. Ke3 {[%clk 0:01:45]}  Qe1+ {[%clk 0:01:02]} 27. Kf4 {[%clk 0:01:40]}  Rc4+ {[%clk 0:01:00]} 28. Kf3 {[%clk 0:01:34]}  Qxe5 {[%clk 0:00:36]} 0-1


[Site "https://www.chess.com"]

[Event "Titled Tuesday Blitz June 21 Early 2022"]
[White "Artemenko, Oleg"]
[Black "Manukian, Artak"]
[WhiteFideId "14201798"]
[BlackFideId "13301373"]
[WhiteElo "2287"]
[BlackElo "2487"]
[Result "1/2-1/2"]
[Round "10"]
[TimeControl "180+1"]
[Date "2022.06.22"]
[WhiteClock "0:00:41"]
[BlackClock "0:00:07"]

1. e4 {[%clk 0:03:00]}  c6 {[%clk 0:02:39]} 2. d4 {[%clk 0:02:57]}  d5 {[%clk 0:02:38]} 3. e5 {[%clk 0:02:58]}  Bf5 {[%clk 0:02:38]} 4. Nf3 {[%clk 0:02:59]}  e6 {[%clk 0:02:37]} 5. Be2 {[%clk 0:02:59]}  c5 {[%clk 0:02:36]} 6. c4 {[%clk 0:02:58]}  dxc4 {[%clk 0:02:36]} 7. dxc5 {[%clk 0:02:58]}  Qxd1+ {[%clk 0:02:35]} 8. Bxd1 {[%clk 0:02:58]}  Bxc5 {[%clk 0:02:35]} 9. Nbd2 {[%clk 0:02:58]}  Nc6 {[%clk 0:02:13]} 10. Nxc4 {[%clk 0:02:56]}  O-O-O {[%clk 0:02:12]} 11. Be2 {[%clk 0:02:51]}  h6 {[%clk 0:02:05]} 12. O-O {[%clk 0:02:50]}  Bd3 {[%clk 0:02:04]} 13. Bxd3 {[%clk 0:02:46]}  Rxd3 {[%clk 0:02:05]} 14. a3 {[%clk 0:02:45]}  b5 {[%clk 0:02:00]} 15. Be3 {[%clk 0:02:38]}  Bxe3 {[%clk 0:01:55]} 16. Nxe3 {[%clk 0:02:39]}  Nge7 {[%clk 0:01:53]} 17. Rac1 {[%clk 0:02:36]}  Kb7 {[%clk 0:01:53]} 18. Rc5 {[%clk 0:02:34]}  a6 {[%clk 0:01:51]} 19. Rfc1 {[%clk 0:02:34]}  Rhd8 {[%clk 0:01:50]} 20. h4 {[%clk 0:02:34]}  Rc8 {[%clk 0:01:32]} 21. Kf1 {[%clk 0:02:28]}  Na7 {[%clk 0:01:31]} 22. Rxc8 {[%clk 0:02:28]}  Naxc8 {[%clk 0:01:30]} 23. Ke2 {[%clk 0:02:28]}  Rd7 {[%clk 0:01:28]} 24. Nd2 {[%clk 0:02:27]}  Nc6 {[%clk 0:01:21]} 25. Ne4 {[%clk 0:02:22]}  Rc7 {[%clk 0:01:14]} 26. Nc5+ {[%clk 0:02:13]}  Kb6 {[%clk 0:01:13]} 27. Nd3 {[%clk 0:02:04]}  Nd4+ {[%clk 0:01:09]} 28. Kd1 {[%clk 0:02:05]}  Rxc1+ {[%clk 0:01:08]} 29. Kxc1 {[%clk 0:02:05]}  Ne7 {[%clk 0:01:03]} 30. g3 {[%clk 0:02:05]}  Nec6 {[%clk 0:01:00]} 31. f4 {[%clk 0:01:46]}  Ne2+ {[%clk 0:00:59]} 32. Kd2 {[%clk 0:01:46]}  Nxg3 {[%clk 0:01:00]} 33. Kc3 {[%clk 0:01:46]}  h5 {[%clk 0:00:49]} 34. b4 {[%clk 0:01:45]}  Ne4+ {[%clk 0:00:36]} 35. Kb2 {[%clk 0:01:45]}  a5 {[%clk 0:00:36]} 36. Nc2 {[%clk 0:01:37]}  Nd2 {[%clk 0:00:27]} 37. Nce1 {[%clk 0:01:32]}  Nc4+ {[%clk 0:00:16]} 38. Ka2 {[%clk 0:01:32]}  Ne3 {[%clk 0:00:14]} 39. Nf3 {[%clk 0:01:32]}  Nf5 {[%clk 0:00:14]} 40. Kb2 {[%clk 0:01:23]}  axb4 {[%clk 0:00:11]} 41. axb4 {[%clk 0:01:21]}  f6 {[%clk 0:00:09]} 42. Kc3 {[%clk 0:01:20]}  Nce7 {[%clk 0:00:07]} 43. Kd2 {[%clk 0:01:14]}  Nd5 {[%clk 0:00:07]} 44. Ke2 {[%clk 0:01:12]}  Nc3+ {[%clk 0:00:06]} 45. Ke1 {[%clk 0:01:10]}  Nd5 {[%clk 0:00:06]} 46. Kd2 {[%clk 0:01:09]}  Kc6 {[%clk 0:00:06]} 47. Ke2 {[%clk 0:01:07]}  Kd7 {[%clk 0:00:05]} 48. Nc5+ {[%clk 0:01:07]}  Ke7 {[%clk 0:00:06]} 49. Nd3 {[%clk 0:01:06]}  Kf7 {[%clk 0:00:05]} 50. Kf2 {[%clk 0:01:07]}  Ke7 {[%clk 0:00:04]} 51. Kg2 {[%clk 0:01:07]}  Kd7 {[%clk 0:00:04]} 52. Kh3 {[%clk 0:01:07]}  Ke7 {[%clk 0:00:04]} 53. Nd2 {[%clk 0:01:07]}  Nd4 {[%clk 0:00:03]} 54. Ne4 {[%clk 0:01:06]}  Ne2 {[%clk 0:00:03]} 55. exf6+ {[%clk 0:00:59]}  gxf6 {[%clk 0:00:04]} 56. f5 {[%clk 0:00:56]}  exf5 {[%clk 0:00:04]} 57. Ng3 {[%clk 0:00:50]}  Nxg3 {[%clk 0:00:04]} 58. Kxg3 {[%clk 0:00:50]}  Ke6 {[%clk 0:00:05]} 59. Kf3 {[%clk 0:00:51]}  f4 {[%clk 0:00:04]} 60. Ke4 {[%clk 0:00:50]}  f5+ {[%clk 0:00:04]} 61. Kf3 {[%clk 0:00:50]}  Kf6 {[%clk 0:00:05]} 62. Kf2 {[%clk 0:00:48]}  Ke6 {[%clk 0:00:05]} 63. Kf3 {[%clk 0:00:48]}  Kf6 {[%clk 0:00:05]} 64. Kf2 {[%clk 0:00:48]}  Ke6 {[%clk 0:00:06]} 65. Ke2 {[%clk 0:00:47]}  Kf6 {[%clk 0:00:06]} 66. Kf3 {[%clk 0:00:44]}  Ke6 {[%clk 0:00:07]} 67. Kg2 {[%clk 0:00:41]}  Kf6 {[%clk 0:00:07]} 68. Kf2 {[%clk 0:00:41]} 1/2-1/2


[Site "https://www.chess.com"]

[Event "Titled Tuesday Blitz June 21 Early 2022"]
[White "Barbashin, Igor"]
[Black "De Souza, Cristiano Gomes"]
[WhiteFideId "4155718"]
[BlackFideId "2151758"]
[WhiteElo "2138"]
[BlackElo "2068"]
[Result "1-0"]
[Round "10"]
[TimeControl "180+1"]
[Date "2022.06.22"]
[WhiteClock "0:00:55"]
[BlackClock "0:01:19"]

1. d4 {[%clk 0:03:00]}  Nf6 {[%clk 0:02:59]} 2. c4 {[%clk 0:03:00]}  g6 {[%clk 0:02:59]} 3. Nc3 {[%clk 0:02:59]}  Bg7 {[%clk 0:03:00]} 4. e4 {[%clk 0:02:57]}  d6 {[%clk 0:03:00]} 5. Nf3 {[%clk 0:02:58]}  O-O {[%clk 0:03:01]} 6. Be2 {[%clk 0:02:59]}  Nc6 {[%clk 0:02:59]} 7. O-O {[%clk 0:02:59]}  e5 {[%clk 0:02:59]} 8. dxe5 {[%clk 0:02:59]}  Nxe5 {[%clk 0:02:58]} 9. Nxe5 {[%clk 0:02:48]}  dxe5 {[%clk 0:02:57]} 10. Qxd8 {[%clk 0:02:30]}  Rxd8 {[%clk 0:02:56]} 11. Bg5 {[%clk 0:02:27]}  Re8 {[%clk 0:02:56]} 12. Rfd1 {[%clk 0:02:26]}  c6 {[%clk 0:02:53]} 13. b4 {[%clk 0:02:21]}  Be6 {[%clk 0:02:49]} 14. c5 {[%clk 0:02:17]}  h6 {[%clk 0:02:46]} 15. Be3 {[%clk 0:02:14]}  Rad8 {[%clk 0:02:44]} 16. f3 {[%clk 0:02:08]}  Kf8 {[%clk 0:02:44]} 17. a4 {[%clk 0:02:06]}  Ke7 {[%clk 0:02:41]} 18. b5 {[%clk 0:02:05]}  Nh5 {[%clk 0:02:39]} 19. a5 {[%clk 0:01:51]}  Nf4 {[%clk 0:02:38]} 20. Bf1 {[%clk 0:01:49]}  Rxd1 {[%clk 0:02:23]} 21. Rxd1 {[%clk 0:01:48]}  Rd8 {[%clk 0:02:23]} 22. Rb1 {[%clk 0:01:44]}  Bc8 {[%clk 0:02:12]} 23. a6 {[%clk 0:01:39]}  cxb5 {[%clk 0:02:01]} 24. axb7 {[%clk 0:01:34]}  Bxb7 {[%clk 0:02:00]} 25. Nxb5 {[%clk 0:01:33]}  Ba6 {[%clk 0:01:51]} 26. Nxa7 {[%clk 0:01:29]}  Bxf1 {[%clk 0:01:50]} 27. Nc6+ {[%clk 0:01:29]}  Kd7 {[%clk 0:01:48]} 28. Nxd8 {[%clk 0:01:27]}  Kxd8 {[%clk 0:01:47]} 29. Kxf1 {[%clk 0:01:25]}  Ne6 {[%clk 0:01:46]} 30. Rb7 {[%clk 0:01:22]}  f5 {[%clk 0:01:39]} 31. c6 {[%clk 0:01:18]}  fxe4 {[%clk 0:01:37]} 32. fxe4 {[%clk 0:01:18]}  Bf8 {[%clk 0:01:36]} 33. Bb6+ {[%clk 0:01:11]}  Kc8 {[%clk 0:01:36]} 34. Rf7 {[%clk 0:01:07]}  Bc5 {[%clk 0:01:28]} 35. Rf6 {[%clk 0:01:00]}  Bxb6 {[%clk 0:01:24]} 36. Rxe6 {[%clk 0:01:00]}  Be3 {[%clk 0:01:20]} 37. Rxe5 {[%clk 0:00:58]}  Kc7 {[%clk 0:01:21]} 38. Re6 {[%clk 0:00:58]}  g5 {[%clk 0:01:18]} 39. Rxh6 {[%clk 0:00:57]}  Bf4 {[%clk 0:01:19]} 40. g3 {[%clk 0:00:55]} 1-0


[Site "https://www.chess.com"]

[Event "Titled Tuesday Blitz June 21 Early 2022"]
[White "Bharath Subramaniyam H"]
[Black "Tari, Aryan"]
[WhiteFideId "46634827"]
[BlackFideId "1510045"]
[WhiteElo "2242"]
[BlackElo "2567"]
[Result "1-0"]
[Round "10"]
[TimeControl "180+1"]
[Date "2022.06.21"]
[WhiteClock "0:00:20"]
[BlackClock "0:00:12"]

1. c4 {[%clk 0:02:59]}  e6 {[%clk 0:02:55]} 2. Nc3 {[%clk 0:02:59]}  d5 {[%clk 0:02:56]} 3. d4 {[%clk 0:02:59]}  c5 {[%clk 0:02:57]} 4. cxd5 {[%clk 0:02:55]}  cxd4 {[%clk 0:02:57]} 5. Qa4+ {[%clk 0:02:51]}  Bd7 {[%clk 0:02:57]} 6. Qxd4 {[%clk 0:02:51]}  exd5 {[%clk 0:02:57]} 7. Nf3 {[%clk 0:02:51]}  Nf6 {[%clk 0:02:57]} 8. Bg5 {[%clk 0:02:51]}  Nc6 {[%clk 0:02:57]} 9. Qd3 {[%clk 0:02:48]}  h6 {[%clk 0:02:47]} 10. Bh4 {[%clk 0:02:47]}  g5 {[%clk 0:02:15]} 11. Bg3 {[%clk 0:02:46]}  Qb6 {[%clk 0:02:16]} 12. O-O-O {[%clk 0:02:05]}  Rc8 {[%clk 0:02:03]} 13. Ne5 {[%clk 0:01:56]}  Nb4 {[%clk 0:01:59]} 14. Qb1 {[%clk 0:01:50]}  Ba4 {[%clk 0:01:47]} 15. e3 {[%clk 0:01:23]}  Ne4 {[%clk 0:01:20]} 16. Nc4 {[%clk 0:00:56]}  Qe6 {[%clk 0:00:59]} 17. Nxe4 {[%clk 0:00:49]}  dxe4 {[%clk 0:00:57]} 18. Rd4 {[%clk 0:00:46]}  Bc2 {[%clk 0:00:54]} 19. Qa1 {[%clk 0:00:40]}  Bg7 {[%clk 0:00:45]} 20. Nd6+ {[%clk 0:00:33]}  Ke7 {[%clk 0:00:45]} 21. Nxc8+ {[%clk 0:00:34]}  Rxc8 {[%clk 0:00:45]} 22. Bd6+ {[%clk 0:00:34]}  Ke8 {[%clk 0:00:40]} 23. Bxb4 {[%clk 0:00:34]}  Bd3+ {[%clk 0:00:39]} 24. Bc3 {[%clk 0:00:33]}  Bxd4 {[%clk 0:00:31]} 25. exd4 {[%clk 0:00:34]}  Qf5 {[%clk 0:00:20]} 26. Bxd3 {[%clk 0:00:31]}  exd3 {[%clk 0:00:21]} 27. Re1+ {[%clk 0:00:31]}  Kd7 {[%clk 0:00:22]} 28. Qb1 {[%clk 0:00:25]}  Qxf2 {[%clk 0:00:21]} 29. Kd1 {[%clk 0:00:23]}  Rxc3 {[%clk 0:00:15]} 30. bxc3 {[%clk 0:00:20]}  d2 {[%clk 0:00:16]} 31. Qb5+ {[%clk 0:00:19]}  Kd6 {[%clk 0:00:12]} 32. Qc5+ {[%clk 0:00:20]} 1-0


[Site "https://www.chess.com"]

[Event "Titled Tuesday Blitz June 21 Early 2022"]
[White "Borgaonkar Akshay"]
[Black "Mitrovic, Darko R"]
[WhiteFideId "25639110"]
[BlackFideId "927023"]
[WhiteElo "1660"]
[BlackElo "2150"]
[Result "1-0"]
[Round "10"]
[TimeControl "180+1"]
[Date "2022.06.22"]
[WhiteClock "0:01:18"]
[BlackClock "0:00:02"]

1. Nf3 {[%clk 0:03:00]}  Nf6 {[%clk 0:02:59]} 2. g3 {[%clk 0:03:01]}  g6 {[%clk 0:02:57]} 3. Bg2 {[%clk 0:03:02]}  Bg7 {[%clk 0:02:57]} 4. O-O {[%clk 0:03:03]}  O-O {[%clk 0:02:57]} 5. c4 {[%clk 0:03:03]}  c5 {[%clk 0:02:55]} 6. Nc3 {[%clk 0:03:03]}  Nc6 {[%clk 0:02:51]} 7. e4 {[%clk 0:03:04]}  e5 {[%clk 0:02:49]} 8. d3 {[%clk 0:03:04]}  d6 {[%clk 0:02:49]} 9. a3 {[%clk 0:03:02]}  a5 {[%clk 0:02:46]} 10. h3 {[%clk 0:02:55]}  h6 {[%clk 0:02:45]} 11. g4 {[%clk 0:02:55]}  Be6 {[%clk 0:02:17]} 12. g5 {[%clk 0:02:52]}  hxg5 {[%clk 0:02:13]} 13. Nxg5 {[%clk 0:02:53]}  Nd4 {[%clk 0:02:00]} 14. Ne2 {[%clk 0:02:47]}  Nxe2+ {[%clk 0:01:49]} 15. Qxe2 {[%clk 0:02:47]}  Nh5 {[%clk 0:01:43]} 16. Nxe6 {[%clk 0:02:46]}  fxe6 {[%clk 0:01:43]} 17. Qg4 {[%clk 0:02:47]}  Qf6 {[%clk 0:01:33]} 18. Bg5 {[%clk 0:02:44]}  Qf7 {[%clk 0:01:31]} 19. Rae1 {[%clk 0:02:41]}  Kh7 {[%clk 0:01:26]} 20. Re3 {[%clk 0:02:40]}  Bh6 {[%clk 0:01:24]} 21. Rf3 {[%clk 0:02:36]}  Qg7 {[%clk 0:01:12]} 22. Bxh6 {[%clk 0:02:32]}  Qxh6 {[%clk 0:01:05]} 23. Rxf8 {[%clk 0:02:33]}  Rxf8 {[%clk 0:01:03]} 24. Qxe6 {[%clk 0:02:33]}  Nf4 {[%clk 0:00:57]} 25. Qd7+ {[%clk 0:02:28]}  Kg8 {[%clk 0:00:38]} 26. Qg4 {[%clk 0:02:21]}  Nxd3 {[%clk 0:00:30]} 27. Qe6+ {[%clk 0:02:20]}  Rf7 {[%clk 0:00:20]} 28. Qxd6 {[%clk 0:02:17]}  Qd2 {[%clk 0:00:12]} 29. Qxg6+ {[%clk 0:02:13]}  Rg7 {[%clk 0:00:10]} 30. Qe8+ {[%clk 0:02:13]}  Kh7 {[%clk 0:00:10]} 31. Qh5+ {[%clk 0:01:36]}  Kg8 {[%clk 0:00:09]} 32. Qd1 {[%clk 0:01:34]}  Qg5 {[%clk 0:00:07]} 33. Qg4 {[%clk 0:01:32]}  Qf6 {[%clk 0:00:07]} 34. Qc8+ {[%clk 0:01:30]}  Kh7 {[%clk 0:00:06]} 35. Kh1 {[%clk 0:01:26]}  Nf4 {[%clk 0:00:06]} 36. Rg1 {[%clk 0:01:25]}  Qh4 {[%clk 0:00:05]} 37. Qf5+ {[%clk 0:01:24]}  Kh6 {[%clk 0:00:04]} 38. Qxe5 {[%clk 0:01:19]}  Rxg2 {[%clk 0:00:03]} 39. Qh8+ {[%clk 0:01:18]}  Kg5 {[%clk 0:00:02]} 40. Qxh4+ {[%clk 0:01:17]}  Kxh4 {[%clk 0:00:02]} 41. Rxg2 {[%clk 0:01:18]}  Nxg2 {[%clk 0:00:02]} 42. Kxg2 {[%clk 0:01:18]} 1-0


[Site "https://www.chess.com"]